Cogmind - Beta 16 @@@ ROGUE MODE // 2025.10.24 @ 15:53:03 Player: Moodge Result: Destroyed by G-34 Mercenary with Small Laser Performance ------------- Evolutions (1) 500 Regions Visited (3) 600 Robots Destroyed (15) 75 Value Destroyed (416) 416 Prototype IDs (2) 40 Alien Tech Used (0) 0 Bonus (0) 0 TOTAL SCORE: 1631 Bonus ------- None Cogmind --------- Core Integrity 0/400 Matter 47/300 Energy 52/250 System Corruption 0% Temperature Warm (109) Movement Core (150) Ox2 Location -9/Materials Parts ------- > --- POWER (2) -------- Ion Engine > --- PROPULSION (2) --- (None) > --- UTILITY (3) ------ (None) > --- WEAPON (2) ------- Improved Medium Laser > --- INVENTORY (5) ---- Huge Storage Unit Beam Rifle Faulty Improved Medium Laser Improved Assault Rifle Peak State ------------ > --- POWER ------------ Ion Engine Backup Power I > --- PROPULSION ------- Backup Propulsion I Improved Hover Unit > --- UTILITY ---------- Backup Plating I Backup Plating I > --- WEAPON ----------- Backup Laser I Improved Assault Rifle > --- INVENTORY -------- Backup Propulsion I Flight Unit Huge Storage Unit Backup Laser I [Rating: 11] Favorites ----------- Power Ion Engine Engine Ion Engine Propulsion Light Treads Treads Light Treads Leg Aluminum Leg Wheel Compact Wheel Hover Unit Backup Propulsion I Flight Unit Flight Unit Utility Targeting Computer Storage Medium Matter Pod Processor Targeting Computer Protection Backup Plating I Weapon Light Assault Rifle Energy Gun Backup Laser I Ballistic Gun Light Assault Rifle Launcher Grenade Launcher Slashing Weapon Mining Claw Build | -11 -10 -10 -9 ------- Run | Yrd Mat Min Mat Slots Evolved 2 | . . . 2 Power 1 | . . . 1 Propulsion . | . . . . Utility 1 | . . . 1 Weapon . | . . . . Parts Attached 35 | 7 18 1 9 Power 5 | 2 1 . 2 Engine 5 | 2 1 . 2 Core . | . . . . Reactor . | . . . . Propulsion 10 | 2 4 1 3 Treads 3 | . 2 1 . Leg 2 | . . . 2 Wheel 2 | 2 . . . Hover 1 | . . . 1 Flight 2 | . 2 . . Utility 7 | 1 6 . . Device . | . . . . Storage 6 | 1 5 . . Processor 1 | . 1 . . Hackware . | . . . . Protection . | . . . . Artifact . | . . . . Weapon 13 | 2 7 . 4 Energy Gun 4 | . 1 . 3 Energy Cannon . | . . . . Ballistic Gun 6 | 2 3 . 1 Ballistic Cannon . | . . . . Launcher 1 | . 1 . . Special Weapon . | . . . . Impact Weapon . | . . . . Slashing Weapon 2 | . 2 . . Piercing Weapon . | . . . . Special Melee Weapon . | . . . . Unidentified Prototypes 2 | . . . 2 Parts Lost 11 | . 1 2 8 Power 3 | . . 1 2 Propulsion 3 | . . 1 2 Utility 2 | . . . 2 Weapon 3 | . 1 . 2 Highest Loss Streak 7 | . 1 1 7 To Critical Strikes . | . . . . Average Backups 12 | 3 14 24 5 Power . | . . 1 . Propulsion 4 | 2 5 6 1 Utility 4 | . 4 10 2 Weapon 3 | . 3 6 1 Tool/Special . | . . . . Unused Backups 9 | . . . 9 Power . | . . . . Propulsion 1 | . . . 1 Utility 5 | . . . 5 Weapon 2 | . . . 2 Tool/Special 1 | . . . 1 Average Slot Usage (%) 86 | . 93 96 64 Engine 13 | . 14 14 13 Treads 12 | . 18 7 . Wheel 7 | . 7 16 . Hover 2 | . . . 9 Storage 15 | . 21 14 1 Processor 4 | . 3 14 2 Protection 2 | . . . 11 Energy Gun 5 | . 3 . 12 Ballistic Gun 10 | . 8 28 8 Launcher 3 | . 5 . . Slashing Weapon 4 | . 7 . . Peak Build Rating 11 | 6 9 9 11 Average Rating 7 | 3 7 8 7 On Entrance 5 | . 6 9 8 Avg Prop Armor Cover (%) . | . . . . Naked Turns . | . . . . Heaviest Build 87 | 14 85 85 87 Greatest Support 40 | 32 40 40 20 Greatest Overweight (x) 5 | 1 3 5 4 Average Overweight (x) . | . . 2 . Largest Inventory Capacity 25 | 8 25 25 25 Average Capacity 16 | 6 18 25 7 Most Carried 25 | 5 25 25 23 Average Carried 12 | 4 14 24 4 Final Capacity 25 | 8 25 25 5 Final Carried 25 | 5 25 24 4 Class Distribution -------------------- 100% | Mutant Dominant Class ---------------- Mutant | -10/Materials Mutant | -10/Mines Mutant | -9/Materials Resources | -11 -10 -10 -9 ----------- Run | Yrd Mat Min Mat Matter Collected 393 | 187 99 37 70 Remotely . | . . . . Salvage Created 463 | . 150 . 313 Parts 31 | . 13 . 18 Haulers Intercepted 1 | . 1 . . Recyclers Shooed . | . . . . Parts Field Recycled . | . . . . Retrieved Matter . | . . . . Parts Self-Destructed . | . . . . Prevented . | . . . . Parts Restored . | . . . . Kills | -11 -10 -10 -9 ------- Run | Yrd Mat Min Mat Combat Hostiles Destroyed 13 | . 6 . 7 Melee 2 | . 2 . . Guns 7 | . 1 . 6 AOE 2 | . 2 . . Classes Destroyed 5 | . 3 . 2 Worker 1 | . . . 1 Hauler 1 | . 1 . . Swarmer 3 | . 3 . . Grunt 7 | . 3 . 4 Sentry 3 | . . . 3 Best Kill Streak 3 | . 2 . 3 Combat Bots Only 3 | . 2 . 3 Max Kills in Single Turn 1 | . 1 . 1 Gunslinging . | . . . . Exploded 1 | . 1 . . Melee 1 | . 1 . . Uniques/NPCs Destroyed . | . . . . Combat | -11 -10 -10 -9 -------- Run | Yrd Mat Min Mat Hostile Shots Fired 203 | . 53 33 117 Missed 70 | . 15 16 39 Hits 133 | . 38 17 78 Projectile 133 | . 38 17 78 Critical Strikes 4 | . . . 4 Damage Taken 1665 | . 352 236 1077 Core 501 | . 42 53 406 Absorbed by Shields . | . . . . Regen/Repaired (Parts) 380 | . . . 380 Core Remaining (%) 81 | 100 . 62 . Volleys Fired 53 | . 18 1 34 Largest 2 | . 2 2 2 Hottest 112 | . 80 40 112 Shots Fired 87 | . 25 2 60 Gun 84 | . 22 2 60 Cannon . | . . . . Launcher 3 | . 3 . . Special . | . . . . Kinetic 26 | . 8 2 16 Thermal 58 | . 14 . 44 Explosive 3 | . 3 . . Electromagnetic . | . . . . Robot Hit Streak 15 | . 9 1 15 Robot Miss Streak 3 | . 3 3 2 Penetration Max . | . . . . Secondary Targets 1 | . . . 1 Max Gunslinging Chain 1 | . . . 1 Shots Hit Robots 63 | . 19 1 43 Core Hits 22 | . 7 2 13 Critical Kills 1 | . . . 1 Critical Parts Destroyed . | . . . . Critical Strikes 5 | . 1 . 4 Burn 4 | . 1 . 3 Destroy 1 | . . . 1 Melee Attacks 8 | . 8 . . Impact . | . . . . Slashing 8 | . 8 . . Piercing . | . . . . Sneak Attacks . | . . . . Combat Hostiles . | . . . . Follow-up Attacks . | . . . . Damage Inflicted 992 | . 381 10 601 Guns 757 | . 147 9 601 Cannons . | . . . . Explosions 188 | . 188 . . Melee 46 | . 46 . . Ramming 1 | . . 1 . Kinetic 200 | . 24 9 167 Thermal 557 | . 123 . 434 Explosive 188 | . 188 . . Electromagnetic . | . . . . Impact . | . . . . Slashing 46 | . 46 . . Piercing . | . . . . Highest Corruption . | . . . . Average Corruption . | . . . . Corruption Purged . | . . . . Corruption Blocked . | . . . . Overload Shots . | . . . . Overflow Damage 17 | . 17 . . Projectiles . | . . . . Explosions 17 | . 17 . . Melee . | . . . . Knockbacks . | . . . . Impact . | . . . . Kinetic . | . . . . Secondary . | . . . . Self-Inflicted Damage . | . . . . Shots . | . . . . Rammed 1 | . . 1 . Targets Rammed 1 | . . 1 . Kicked . | . . . . Crushed . | . . . . Highest Temperature 176 | . 98 . 176 Average Temperature 46 | . 36 . 50 Received Heat Transfer 615 | . 90 132 393 Siege Activations . | . . . . Martial Activations . | . . . . Shielding Activations . | . . . . Robots Disrupted . | . . . . Combat Hostiles . | . . . . Robots Corrupted . | . . . . Combat Hostiles . | . . . . Parts Fried . | . . . . Impact Corruptions . | . . . . Robots Melted 2 | . 1 . 1 Combat Hostiles 2 | . 1 . 1 Parts Melted 5 | . . . 5 Heat Transferred 1924 | . 444 . 1480 Parts Sabotaged . | . . . . Parts Stolen . | . . . . Parts Stripped . | . . . . Power Chain Reactions . | . . . . Alert | -11 -10 -10 -9 ------- Run | Yrd Mat Min Mat Maximum Alert Level . | . . . . Low Security (%) 100 | 100 100 100 100 Level 1 . | . . . . Level 2 . | . . . . Level 3 . | . . . . Level 4 . | . . . . Level 5 . | . . . . High Security . | . . . . Max Security . | . . . . Peak Influence 82 | . 82 30 80 Initial 4 | . . 4 . Average 18 | . 24 5 14 Influence Increases 476 | . 217 45 214 Destroy 0b10 Robot/C 260 | . 120 . 140 Destroy 0b10 Robot/NC 10 | . 5 . 5 Destroy Leader 52 | . 12 . 40 Successful Hack 28 | . 14 . 14 Disable Machine 15 | . . . 15 Destroy Structure 21 | . 21 . . Lose Combat Pursuer 90 | . 45 45 . Influence Decreases 396 | . 204 58 134 Entered New Map 9 | . . 9 . Time Decay 325 | . 194 39 92 Lost Part 62 | . 10 10 42 Squads Dispatched 2 | . 1 . 1 Investigation 1 | . 1 . . Extermination . | . . . . Reinforcement 1 | . . . 1 Assault . | . . . . Garrison . | . . . . Intercept . | . . . . Searches Triggered . | . . . . Construction Impeded . | . . . . Haulers Reinforced . | . . . . Active Scanning Responses . | . . . . Cargo Convoy Interrupts . | . . . . Stealth | -11 -10 -10 -9 --------- Run | Yrd Mat Min Mat Distress Signals 2 | . 1 . 1 Communications Jammed . | . . . . Distress Signals . | . . . . Times Spotted 31 | . 14 5 12 Peak Tracking Total 8 | . 4 2 8 Tactical Retreats 5 | . 3 2 . Traps | -11 -10 -10 -9 ------- Run | Yrd Mat Min Mat Traps Triggered 1 | . 1 . . Indirectly . | . . . . Trap Hack Attempts . | . . . . Triggered . | . . . . Disarmed . | . . . . Reprogrammed . | . . . . Reused . | . . . . Traps Extracted . | . . . . Installed . | . . . . Triggered . | . . . . Machines | -11 -10 -10 -9 ---------- Run | Yrd Mat Min Mat Machines Disabled 1 | . . . 1 Max in Single Turn 1 | . . . 1 Machines Repaired . | . . . . Machines Dismantled . | . . . . Machines Sabotaged . | . . . . Overloaded Fab Kills . | . . . . Hacking | -11 -10 -10 -9 --------- Run | Yrd Mat Min Mat Machines Accessed 7 | . 5 . 2 Terminals 3 | . 3 . . Fabricators . | . . . . Repair Stations 1 | . . . 1 Recycling Units 3 | . 2 . 1 Scanalyzers . | . . . . Garrison Access . | . . . . Total Hacks 31 | . 14 . 17 Successful 23 | . 8 . 15 Failed 8 | . 6 . 2 Catastrophic 1 | . 1 . . Database Lockouts . | . . . . Manual . | . . . . Terminals 6 | . 6 . . Fabricators . | . . . . Repair Stations 8 | . . . 8 Recycling Units 17 | . 8 . 9 Scanalyzers . | . . . . Garrison Access . | . . . . Terminal Hacks 3 | . 3 . . Locate Traps 1 | . 1 . . Dispatch Records 1 | . 1 . . Zone Layout 1 | . 1 . . Fabricator Hacks . | . . . . Repair Station Hacks 8 | . . . 8 Scan Component 3 | . . . 3 Repair 3 | . . . 3 Refit 2 | . . . 2 Recycling Unit Hacks 12 | . 5 . 7 Recycle Component 4 | . 1 . 3 Process 2 | . 1 . 1 Report Inventory 1 | . 1 . . Retrieve Matter 3 | . 1 . 2 Retrieve Components 2 | . 1 . 1 Scanalyzer . | . . . . Garrison Access Hacks . | . . . . Unauthorized Hacks . | . . . . Terminals . | . . . . Fabricators . | . . . . Repair Stations . | . . . . Recycling Units . | . . . . Scanalyzers . | . . . . Garrison Access . | . . . . Data Cores Recovered . | . . . . Used . | . . . . Hacking Detections 3 | . 3 . . Full Trace Events 2 | . 2 . . Feedback Events . | . . . . Feedback Blocked . | . . . . Robot Schematics Acquired . | . . . . Robots Built . | . . . . Authchips . | . . . . Time . | . . . . Total Robot Build Rating . | . . . . Part Schematics Acquired . | . . . . Parts Built . | . . . . Authchips . | . . . . Time . | . . . . Total Part Build Rating . | . . . . Part Studies Acquired . | . . . . Parts Repaired 3 | . . . 3 Time 78 | . . . 78 Parts Recycled 4 | . 1 . 3 Recycled Matter 95 | . 50 . 45 Retrieved Matter 45 | . . . 45 Retrieved Components 6 | . 6 . . Parts Scanalyzed . | . . . . Part Schematics Acquired . | . . . . Parts Damaged . | . . . . Bothacking | -11 -10 -10 -9 ------------ Run | Yrd Mat Min Mat Used RIF Installer . | . . . . Robots Hacked . | . . . . Non-combat . | . . . . Combat . | . . . . Robot Hacks Applied . | . . . . Relay Couplers Released . | . . . . Fabnet Peak Effective % . | . . . . Robots Rewired . | . . . . Allies Hacked . | . . . . Hacks Repelled . | . . . . Allies | -11 -10 -10 -9 -------- Run | Yrd Mat Min Mat Total Allies . | . . . . Largest Group . | . . . . Highest-Rated Group . | . . . . Highest-Rated Ally . | . . . . Total Orders . | . . . . Ally Attacks . | . . . . Total Damage . | . . . . Kills . | . . . . Allies Corrupted . | . . . . Allies Melted . | . . . . Intel | -11 -10 -10 -9 ------- Run | Yrd Mat Min Mat Active Infowar (turns) . | . . . . Robot Analysis Total . | . . . . Derelict Logs Recovered . | . . . . Drone Launches . | . . . . Drone Recoveries . | . . . . Exploration | -11 -10 -10 -9 ------------- Run | Yrd Mat Min Mat Turns Passed 1211 | 62 735 138 276 Spaces Moved 642 | 57 356 76 153 Core 62 | 27 . . 35 Treads 212 | . 198 14 . Legs 14 | . . . 14 Wheels 227 | 30 135 62 . Hover 104 | . . . 104 Flight 23 | . 23 . . Fastest Speed 37 | 50 37 130 50 Average Speed 143 | 80 163 176 101 Slowest Speed 400 | 100 277 320 400 Overloaded Moves . | . . . . Propulsion Burnouts . | . . . . Robots Hopped . | . . . . Potential Cave-ins . | . . . . Cave-ins Triggered . | . . . . Exploration Rate (%) 18 | 3 35 23 14 Regions Visited 3 Branch Regions 1 Pre-discovered Areas . | . . . . Known Exits Taken . | . . . . Unknown Exits Taken 3 | 1 1 1 . Scrap Searched 1 | . . 1 . Spaces Dug 3 | . 3 . . Terrain Destroyed 21 | . 21 . . Melee 3 | . 3 . . Projectile . | . . . . AOE 18 | . 18 . . Terrain Rammed . | . . . . Walls Destroyed . | . . . . Machines Disabled . | . . . . Actions | -11 -10 -10 -9 --------- Run | Yrd Mat Min Mat Total 833 | 72 466 79 216 Wait 1 | . 1 . . Move 639 | 56 355 75 153 Hop . | . . . . Pick Up 56 | 8 38 . 10 Fast Attach 4 | 3 1 . . Attach 13 | 3 6 1 3 Detach . | . . . . Swap 29 | 1 21 1 6 Drop 29 | 1 18 . 10 Fire 53 | . 18 1 34 Melee 8 | . 8 . . Ram 1 | . . 1 . Kick . | . . . . Crush . | . . . . Escape Stasis . | . . . . Rewire . | . . . . Trap . | . . . . Miscellaneous . | . . . . Route ------- -11/Scrapyard -10/Materials -10/Mines -9/Materials History --------- Turn | Location | Event 5 | -11/Scrapyard | Discovered new exit (range 16) 63 | -11/Scrapyard | Entered Materials 309 | -10/Materials | Build established: Mutant 668 | -10/Materials | Discovered new exit (range 11) 798 | -10/Materials | Entered Mines 910 | -10/Mines | Discovered new exit (range 8) 936 | -10/Mines | Entered Materials 936 | -9/Materials | Evolved 2 slots: Power x1, Utility x1 972 | -9/Materials | Repaired Lgt. Treads 998 | -9/Materials | Repaired Huge Storage Unit 1053 | -9/Materials | Repaired Flight Unit? 1163 | -9/Materials | Core integrity fell below 50% 1193 | -9/Materials | Lost 7 parts (2p2n2u1w) 1204 | -9/Materials | Core integrity fell below 20% 1212 | -9/Materials | Destroyed by G-34 Mercenary with Small Laser Last Messages --------------- 01181_ Critical hit (Burn: +37). 01184_ Melted Beam Rifle. 01186_ Y-45 Defender heat short circuits Lgt. Treads. 01197_ Y-45 Defender heat damages Imp. Ion Engine. 01197_ G-34 Mercenary suffers critical hit (Burn). 01197_ G-34 Mercenary destroyed. 01204_ Beam Rifle destroyed. 01204_ Acquired Ion Engine. 01205_ Y-45 Defender heat spikes uncontrollably. 01206_ Ion Engine melted. 01206_ G-34 Mercenary destroyed. 01208_ Y-45 Defender heat damages Broken Lgt. Treads, Imp. Ion Engine, Hvy. Assault Rifle, Broken Heat Sink. 01210_ Y-45 Defender heat damages Broken Heat Sink, Broken Lgt. Treads, Lgt. Treads. 01210_ Y-45 Defender destroyed. Map ----- +----------------------------------------------------+ | ?????????????????????????????????????????????????? | | ?????????????????????????????????????????????????? | | ?????????????????????????????????????????????????? | | ?????????????????????????????????????????????????? | | ?????????????????????????????????????????????????? | | ?????????????????????????????????????????????????? | | ?????????????????????????????????????????????????? | | ?????????????????????????????????????????????????? | | ?????????????????????????????????????????????????? | | ?????????????????????????????????????????????????? | | ?????????????????????????????????????????????????? | | ?????????????????????????????????????????????????? | | ?????????????????????????????????????????????????? | | ?????????????????????????????????????????????????? | | ?????????????????????????????????????????????????? | | ?????????????????????????????????????????????????? | | ?????????????????????????????????????????????????? | | ?????????????????????????###? ????????????????? | | ??????????????????######## ## ???????????????? | | ??????????????????# # ???????????????? | | ??????????????????# # ??????????????### | | ??????????????????# [[ # ?????????????? | | ??????????????????# # #?????????????# | | ??????????????????# % # #?????????????# | | ??????????????????# g= # #?????????????# " | | ??????????????????# =%@ # #?????????????# " | | ??????????????????# %%![ # #?????????????# " | | ??????????????????#####+##### #?????????????# " | | ?????????????? #### ### #########+##### | | ???????????????! + !! """ | | ?????????????????#### =%!* "Y" " | | ????????????????????# !%= " | | ????????????????????# ###+########## " | | ????????????????????###+#### #??????# """ " | | ???????????????????????????# #??????# """ | | ???????????????????????????# ######## """ | | ???????????????????????????# # | | ???????????????????????????# + | | ???????????????????????????# # | | ???????????????????????????# ### ####+######## | | ???????????????????????????# #?# #???????????? | | ???????????????????????????# #?# +???????????? | | ???????????????????????????######?# ##???????????? | | ??????????????????????????????????# #????????????? | | ?????????????????????????????????? ?????????????? | | ??????????????????????????????????##?????????????? | | ?????????????????????????????????????????????????? | | ?????????????????????????????????????????????????? | | ?????????????????????????????????????????????????? | | ?????????????????????????????????????????????????? | +----------------------------------------------------+ Best States ------------- Heat Dissipation 28 Energy Generation 14 Energy Capacity 250 Matter Stores 217 Matter Capacity 400 Sight Range 16 Terrain Scan Density 10 Armor Coverage 160 Evasion (%) 62 Targeting Accuracy 5 Recoil Reduction 2 Item Schematics ----------------- None Robot Schematics ------------------ None Fabricated ------------ Nothing Repaired ---------- Huge Storage Unit | 37% | -9/Materials Flight Unit | 75% | -9/Materials Studied --------- None Alien Tech Used ----------------- None Achievements -------------- Fitting Room For Emergencies Only Challenges ------------ None Game ------ Seed VoltaicCryofiberWheel Manual? 0 Play Time 00:19:49 Cumulative 11.5 hours Start 2025.10.24 @ 15:33:42 End 2025.10.24 @ 15:53:03 Sessions 1 Manual Loads 0 Difficulty Rogue Special Mode None Game No. 38 Rogue 38 Adventurer 0 Explorer 0 Win Type - Total 0 Types 0/0/0/0/0/0/0/0/0/0 Lore% 8 Gallery% 15 Achievement% 12 Wizard Run 0 Options --------- Layout 1 ASCII 0 Keyboard 0 Movement Mouse Keybinds 0 Fullscreen 1 Font 32/SmallcapsGlow Map View 50x35 Zoom Use 0% Tactical HUD 1 Map Filters NONE Filters NONE Steam 1 RUN: 4612dbb8-f713-47fe-92de-9b81aab9f4d7